fUSD/lending_fUSD_20240708
["ID","MTS","AMOUNT","RATE_DAILY","PERIOD"]
[331492469,1720440143636,-1088.69,0.00049589,120]
[331492470,1720440143710,-500.0,0.00049589,120]
[331492471,1720440143785,-500.0,0.00049589,120]
[331492472,1720440143854,-500.0,0.00049589,120]
[331492473,1720440143926,-23579.31,0.00049589,120]
[331492474,1720440144004,-500.0,0.00049589,120]
[331492475,1720440144081,-3966.4,0.00049589,120]
[331492476,1720440144154,-2068.28,0.00049589,120]
[331492477,1720440144222,-500.0,0.00049589,120]
[331492478,1720440144295,-500.0,0.00049589,120]
[331492479,1720440144363,-500.0,0.00049589,120]
[331492480,1720440144433,-500.0,0.00049589,120]
[331492481,1720440144505,-2578.3,0.00049589,120]
[331492482,1720440144576,-3921.63,0.00049589,120]
[331492483,1720440144648,-500.0,0.00049589,120]
[331492484,1720440144728,-500.0,0.00049589,120]
[331492485,1720440144804,-58243.57,0.00049589,120]
[331492486,1720440144877,-508.44,0.00049589,120]
[331492487,1720440144953,-627.12,0.00049589,120]
[331492488,1720440145030,-500.0,0.00049589,120]
[331492489,1720440145107,-24232.54,0.00049589,120]
[331492490,1720440145182,-500.0,0.00049589,120]
[331492491,1720440145256,-500.0,0.00049589,120]
[331492492,1720440145331,-500.0,0.00049589,120]
[331492493,1720440145403,-552.36,0.00049589,120]
[331492494,1720440145473,-623.17,0.00049589,120]
[331492495,1720440145547,-500.0,0.00049589,120]
[331492496,1720440145618,-500.0,0.00049589,120]
[331492497,1720440145685,-500.0,0.00049589,120]
[331492498,1720440145752,-593.71000641,0.00049589,120]
[331492499,1720440145819,-6752.46,0.00049589,120]
[331492500,1720440145889,-5320.57,0.00049589,120]
[331492501,1720440145960,-184.17,0.00049589,120]
[331492502,1720440146033,-500.0,0.00049589,120]
[331492503,1720440146107,-500.0,0.00049589,120]
[331492504,1720440146178,-500.0,0.00049589,120]
[331492505,1720440146249,-500.0,0.00049589,120]
[331492506,1720440146318,-500.0,0.00049589,120]
[331492507,1720440146387,-695.92,0.00049589,120]
[331492508,1720440146452,-2080.87,0.00049589,120]
[331492509,1720440146514,-500.0,0.00049589,120]
[331492510,1720440146574,-6849.11,0.00049589,120]
[331492511,1720440146633,-602.84807706,0.00049589,120]
[331492512,1720440146696,-500.0,0.00049589,120]
[331492513,1720440146759,-500.0,0.00049589,120]
[331492514,1720440146818,-1687.12,0.00049589,120]
[331492515,1720440146880,-1101.67,0.00049589,120]
[331492516,1720440146947,-741.08,0.00049589,120]
[331492517,1720440147013,-500.0,0.00049589,120]
[331492518,1720440147076,-500.0,0.00049589,120]
[331492519,1720440147139,-500.0,0.00049589,120]
[331492520,1720440147201,-6100.12,0.00049589,120]
[331492521,1720440147260,-1353.36,0.00049589,120]
[331492522,1720440147669,-500.0,0.00049589,120]
[331492523,1720440147732,-500.0,0.00049589,120]
[331492524,1720440147781,-500.0,0.00049589,120]
[331492525,1720440147830,-500.0,0.00049589,120]
[331492526,1720440147877,-6271.45,0.00049589,120]
[331492527,1720440147927,-2621.09,0.00049589,120]
[331492528,1720440147980,-2109.31,0.00049589,120]
[331492529,1720440148034,-500.0,0.00049589,120]
[331492530,1720440148086,-500.0,0.00049589,120]
[331492531,1720440148138,-12321.64,0.00049589,120]
[331492532,1720440148191,-500.0,0.00049589,120]
[331492533,1720440148239,-538.98,0.00049589,120]
[331492534,1720440148288,-291.11514215,0.00049589,120]
[331492535,1720440148339,-5668.6,0.00049589,120]
[331492536,1720440148387,-500.0,0.00049589,120]
[331492537,1720440148435,-500.0,0.00049589,120]
[331492538,1720440148482,-500.0,0.00049589,120]
[331492539,1720440148528,-500.0,0.00049589,120]
[331492540,1720440148575,-6141.18,0.00049589,120]
[331492541,1720440148624,-500.0,0.00049589,120]
[331492542,1720440148671,-500.0,0.00049589,120]
[331492543,1720440148721,-500.0,0.00049589,120]
[331492544,1720440148768,-500.0,0.00049589,120]
[331492545,1720440148816,-500.0,0.00049589,120]
[331492546,1720440148869,-500.0,0.00049589,120]
[331492547,1720440148923,-500.0,0.00049589,120]
[331492548,1720440148986,-621.71408439,0.00049589,120]
[331492549,1720440149045,-768.98,0.00049589,120]
[331492550,1720440149099,-1783.66,0.00049589,120]
[331492551,1720440149157,-1148.58,0.00049589,120]
[331492552,1720440149210,-500.0,0.00049589,120]
[331492553,1720440149260,-500.0,0.00049589,120]
[331492554,1720440149311,-500.0,0.00049589,120]
[331492555,1720440149363,-639.8,0.00049589,120]
[331492556,1720440149420,-500.0,0.00049589,120]
[331492557,1720440149477,-500.0,0.00049589,120]
[331492558,1720440149531,-1046.64,0.00049589,120]
[331492559,1720440149581,-156.72,0.00049589,120]
[331492560,1720440149635,-500.0,0.00049589,120]
[331492561,1720440149687,-500.0,0.00049589,120]
[331492562,1720440149736,-629.3,0.00049589,120]
[331492563,1720440149787,-500.0,0.00049589,120]
[331492564,1720440149835,-500.0,0.00049589,120]
[331492565,1720440149883,-500.0,0.00049589,120]
[331492566,1720440149932,-500.0,0.00049589,120]
[331492567,1720440149990,-629.31,0.00049589,120]
[331492568,1720440150045,-2383.64,0.00049589,120]
[331492569,1720440150101,-1380.83,0.00049589,120]
[331492570,1720440150157,-506.82655565,0.00049589,120]
[331492571,1720440150208,-279.78,0.00049589,120]
[331492572,1720440150260,-500.0,0.00049589,120]
[331492573,1720440150312,-2726.39,0.00049589,120]
[331492574,1720440150364,-1348.55,0.00049589,120]
[331492575,1720440150414,-304.05,0.00049589,120]
[331492576,1720440150462,-500.0,0.00049589,120]
[331492577,1720440150511,-646.48,0.00049589,120]
[331492578,1720440150559,-5858.28,0.00049589,120]
[331492579,1720440150607,-225.56,0.00049589,120]
[331492580,1720440150657,-500.0,0.00049589,120]
[331492581,1720440150704,-500.0,0.00049589,120]
[331492582,1720440150755,-602.07,0.00049589,120]
[331492583,1720440150804,-500.0,0.00049589,120]
[331492584,1720440150854,-3087.04,0.00049589,120]
[331492585,1720440150907,-500.0,0.00049589,120]
[331492586,1720440150959,-500.0,0.00049589,120]
[331492587,1720440151014,-500.0,0.00049589,120]
[331492588,1720440151068,-500.0,0.00049589,120]
[331492589,1720440151122,-768.16,0.00049589,120]
[331492590,1720440151172,-1098.42,0.00049589,120]
[331492591,1720440151225,-500.0,0.00049589,120]
[331492592,1720440151276,-500.0,0.00049589,120]
[331492593,1720440151326,-500.0,0.00049589,120]
[331492594,1720440151376,-1151.32,0.00049589,120]
[331492595,1720440151428,-28264.79,0.00049589,120]
[331492596,1720440151479,-500.0,0.00049589,120]
[331492597,1720440151532,-468.64,0.00049589,120]
[331492598,1720440151585,-1188.45,0.00049589,120]
[331492599,1720440151638,-3804.3,0.00049589,120]
[331492600,1720440151691,-603.98502456,0.00049589,120]
[331492601,1720440151743,-500.0,0.00049589,120]
[331492602,1720440151793,-585.97103953,0.00049589,120]
[331492603,1720440151844,-500.0,0.00049589,120]
[331492604,1720440151894,-500.0,0.00049589,120]
[331492605,1720440151947,-500.0,0.00049589,120]
[331492606,1720440151997,-500.0,0.00049589,120]
[331492607,1720440152048,-634.13,0.00049589,120]
[331492608,1720440152101,-1074.63,0.00049589,120]
[331492609,1720440152154,-500.0,0.00049589,120]
[331492610,1720440152206,-500.0,0.00049589,120]
[331492611,1720440152257,-240.87430638,0.00049589,120]
[331492612,1720440152306,-500.0,0.00049589,120]
[331492613,1720440152352,-1971.31,0.00049589,120]
[331492614,1720440152403,-579.108773,0.00049589,120]
[331492615,1720440152451,-5641.11,0.00049589,120]
[331492616,1720440152502,-972.69,0.00049589,120]
[331492617,1720440152550,-500.0,0.00049589,120]
[331492618,1720440152609,-652.19,0.00049589,120]
[331492619,1720440152675,-500.0,0.00049589,120]
[331492620,1720440152740,-175.78269355,0.00049589,120]
[331492621,1720440152800,-500.0,0.00049589,120]
[331492622,1720440152859,-500.0,0.00049589,120]
[331492623,1720440153134,-1216.89,0.00049589,120]
[331492624,1720440153188,-1765.23,0.00049589,120]
[331492625,1720440153242,-500.0,0.00049589,120]
[331492626,1720440153297,-500.0,0.00049589,120]
[331492627,1720440153349,-500.0,0.00049589,120]
[331492628,1720440153399,-500.0,0.00049589,120]
[331492629,1720440153452,-500.0,0.00049589,120]
[331492630,1720440153502,-5055.86,0.00049589,120]
[331492631,1720440153553,-500.0,0.00049589,120]
[331492632,1720440153606,-500.0,0.00049589,120]
[331492633,1720440153659,-711.2,0.00049589,120]
[331492634,1720440153710,-2570.12,0.00049589,120]
[331492635,1720440153761,-500.0,0.00049589,120]
[331492636,1720440153816,-2420.66,0.00049589,120]
[331492637,1720440153873,-500.0,0.00049589,120]
[331492638,1720440153932,-500.0,0.00049589,120]
[331492639,1720440153990,-2264.16,0.00049589,120]
[331492640,1720440154047,-672.24,0.00049589,120]
[331492641,1720440154103,-500.0,0.00049589,120]
[331492642,1720440154159,-513.0,0.00049589,120]
[331492643,1720440154218,-3711.44,0.00049589,120]
[331492644,1720440154274,-3195.91,0.00049589,120]
[331492645,1720440154334,-500.0,0.00049589,120]
[331492646,1720440154391,-500.0,0.00049589,120]
[331492647,1720440154454,-500.0,0.00049589,120]
[331492648,1720440154510,-500.0,0.00049589,120]
[331492649,1720440154564,-169.17771001,0.00049589,120]
[331492650,1720440154618,-554.68,0.00049589,120]
[331492651,1720440154674,-2590.75,0.00049589,120]
[331492652,1720440154730,-3178.37,0.00049589,120]
[331492653,1720440154791,-822.01,0.00049589,120]
[331492654,1720440154853,-500.0,0.00049589,120]
[331492655,1720440154909,-500.0,0.00049589,120]
[331492656,1720440154967,-1501.03,0.00049589,120]
[331492657,1720440155023,-500.0,0.00049589,120]
[331492658,1720440155077,-500.0,0.00049589,120]
[331492659,1720440155131,-4176.17,0.00049589,120]
[331492660,1720440155186,-4652.58,0.00049589,120]
[331492661,1720440155239,-500.0,0.00049589,120]
[331492662,1720440155297,-500.0,0.00049589,120]
[331492663,1720440155353,-500.0,0.00049589,120]
[331492664,1720440155404,-500.0,0.00049589,120]
[331492665,1720440155454,-607.4,0.00049589,120]
[331492666,1720440155504,-1039.34,0.00049589,120]
[331492667,1720440155556,-500.0,0.00049589,120]
[331492668,1720440155609,-517.37,0.00049589,120]
[331492669,1720440155663,-724.29,0.00049589,120]
[331492670,1720440155716,-1620.57,0.00049589,120]
[331492671,1720440155767,-500.0,0.00049589,120]
[331492672,1720440155819,-1793.43,0.00049589,120]
[331492673,1720440155870,-500.0,0.00049589,120]
[331492674,1720440155922,-12165.5,0.00049589,120]
[331492675,1720440155982,-976.96,0.00049589,120]
[331492676,1720440156037,-500.0,0.00049589,120]
[331492677,1720440156090,-500.0,0.00049589,120]
[331492678,1720440156143,-2857.78,0.00049589,120]
[331492679,1720440156194,-935.81,0.00049589,120]
[331492680,1720440156242,-245.19,0.00049589,120]
[331492681,1720440156291,-794.19,0.00049589,120]
[331492682,1720440156342,-1096.71,0.00049589,120]
[331492683,1720440156393,-812.1,0.00049589,120]
[331492684,1720440156444,-500.0,0.00049589,120]
[331492685,1720440156494,-2680.32,0.00049589,120]
[331492686,1720440156544,-1019.65,0.00049589,120]
[331492687,1720440156591,-1152.98,0.00049589,120]
[331492688,1720440156641,-500.0,0.00049589,120]
[331492689,1720440156691,-2326.97,0.00049589,120]
[331492690,1720440156741,-7204.83,0.00049589,120]
[331492691,1720440156792,-2038.8,0.00049589,120]
[331492692,1720440156840,-500.0,0.00049589,120]
[331492693,1720440156889,-1237.99,0.00049589,120]
[331492694,1720440156937,-671.15,0.00049589,120]
[331492695,1720440156997,-500.0,0.00049589,120]
[331492696,1720440157054,-500.0,0.00049589,120]
[331492697,1720440157111,-507.99,0.00049589,120]
[331492698,1720440157166,-500.0,0.00049589,120]
[331492699,1720440157219,-789.69,0.00049589,120]
[331492700,1720440157272,-943.16,0.00049589,120]
[331492701,1720440157323,-5931.18,0.00049589,120]
[331492702,1720440157374,-4626.82,0.00049589,120]
[331492703,1720440157425,-2327.97,0.00049589,120]
[331492704,1720440157478,-464.31213575,0.00049589,120]
[331492705,1720440157533,-1802.66,0.00049589,120]
[331492706,1720440157584,-500.0,0.00049589,120]
[331492707,1720440157636,-298.50315627,0.00049589,120]
[331492708,1720440157685,-2045.63,0.00049589,120]
[331492709,1720440157732,-2179.21,0.00049589,120]
[331492710,1720440157780,-500.0,0.00049589,120]
[331492711,1720440157829,-679.68,0.00049589,120]
[331492712,1720440157878,-500.0,0.00049589,120]
[331492713,1720440157930,-500.0,0.00049589,120]
[331492714,1720440157985,-500.0,0.00049589,120]
[331492715,1720440158036,-5851.04,0.00049589,120]
[331492716,1720440158088,-790.26,0.00049589,120]
[331492717,1720440158141,-500.0,0.00049589,120]
[331492718,1720440158194,-3857.14,0.00049589,120]
[331492719,1720440158245,-500.0,0.00049589,120]
[331492720,1720440158296,-500.0,0.00049589,120]
[331492721,1720440158345,-500.0,0.00049589,120]
[331492722,1720440158394,-500.0,0.00049589,120]
[331492723,1720440158444,-500.0,0.00049589,40]
[331492724,1720440158493,-500.0,0.00049589,120]
[331492725,1720440158543,-500.0,0.00049589,120]
[331492726,1720440158592,-918.0,0.00049589,120]
[331492727,1720440158854,-1071.27,0.00049589,120]
[331492728,1720440158911,-500.0,0.00049589,120]
[331492729,1720440158971,-500.0,0.00049589,120]
[331492730,1720440159027,-500.0,0.00049589,120]
[331492731,1720440159086,-1237.8,0.00049589,120]
[331492732,1720440159143,-9335.91,0.00049589,120]
[331492733,1720440159200,-1080.21,0.00049589,120]
[331492734,1720440159257,-971.7,0.00049589,120]
[331492735,1720440159315,-500.0,0.00049589,120]
[331492736,1720440159378,-500.0,0.00049589,120]
[331492737,1720440159436,-500.0,0.00049589,120]
[331492738,1720440159498,-500.0,0.00049589,120]
[331492739,1720440159559,-4880.04,0.00049589,120]
[331492740,1720440159621,-836.04,0.00049589,120]
[331492741,1720440159680,-2472.65,0.00049589,120]
[331492742,1720440159739,-550.11,0.00049589,120]
[331492743,1720440159800,-1021.84,0.00049589,120]
[331492744,1720440159860,-500.0,0.00049589,120]
[331492745,1720440159921,-500.0,0.00049589,120]
[331492746,1720440159982,-500.0,0.00049589,120]
[331492747,1720440160041,-500.0,0.00049589,120]
[331492748,1720440160104,-500.0,0.00049589,120]
[331492749,1720440160165,-500.0,0.00049589,120]
[331492750,1720440160225,-500.0,0.00049589,120]
[331492751,1720440160282,-500.0,0.00049589,120]
[331492752,1720440160339,-500.0,0.00049589,120]
[331492753,1720440160395,-500.0,0.00049589,120]
[331492754,1720440160450,-1033.51,0.00049589,120]
[331492755,1720440160506,-820.16,0.00049589,120]
[331492756,1720440160563,-1695.51,0.00049589,120]
[331492757,1720440160617,-500.0,0.00049589,120]
[331492758,1720440160671,-4157.78,0.00049589,120]
[331492759,1720440160725,-511.6,0.00049589,120]
[331492760,1720440160783,-500.0,0.00049589,120]
[331492761,1720440160840,-3132.94,0.00049589,120]
[331492762,1720440160898,-1913.66,0.00049589,120]
[331492763,1720440160956,-500.0,0.00049589,120]
[331492764,1720440161014,-500.0,0.00049589,120]
[331492765,1720440161072,-500.0,0.00049589,120]
[331492766,1720440161131,-652.08,0.00049589,120]
[331492767,1720440161190,-1698.07,0.00049589,120]
[331492768,1720440161248,-500.0,0.00049589,120]
[331492769,1720440161308,-500.0,0.00049589,120]
[331492770,1720440161371,-500.0,0.00049589,120]
[331492771,1720440161430,-500.0,0.00049589,120]
[331492772,1720440161490,-637.31,0.00049589,120]
[331492773,1720440161548,-336.23104753,0.00049589,120]
[331492774,1720440161608,-3335.79,0.00049589,120]
[331492775,1720440161667,-500.0,0.00049589,120]
[331492776,1720440161723,-572.94,0.00049589,120]
[331492777,1720440161776,-500.0,0.00049589,120]
[331492778,1720440161830,-500.0,0.00049589,120]
[331492779,1720440161885,-629.31,0.00049589,120]
[331492780,1720440161942,-500.0,0.00049589,120]
[331492781,1720440162009,-1910.14,0.00049589,120]
[331492782,1720440162071,-500.0,0.00049589,120]
[331492783,1720440162132,-500.0,0.00049589,120]
[331492784,1720440162191,-500.0,0.00049589,120]
[331492785,1720440162249,-2108.8,0.00049589,120]
[331492786,1720440162307,-694.53,0.00049589,120]
[331492787,1720440162367,-225.56,0.00049589,120]
[331492788,1720440162426,-500.0,0.00049589,120]
[331492789,1720440162484,-500.0,0.00049589,120]
[331492790,1720440162543,-1154.16,0.00049589,120]
[331492791,1720440162598,-526.49296914,0.00049589,120]
[331492792,1720440162651,-1564.34,0.00049589,120]
[331492793,1720440162703,-500.0,0.00049589,120]
[331492794,1720440162755,-500.0,0.00049589,120]
[331492795,1720440162808,-500.0,0.00049589,120]
[331492796,1720440162862,-500.0,0.00049589,120]
[331492797,1720440162916,-2059.4,0.00049589,120]
[331492798,1720440162973,-3033.38,0.00049589,120]
[331492799,1720440163031,-500.0,0.00049589,120]
[331492800,1720440163086,-500.0,0.00049589,120]
[331492801,1720440163142,-500.0,0.00049589,120]
[331492802,1720440163200,-500.0,0.00049589,120]
[331492803,1720440163258,-989.58,0.00049589,120]
[331492804,1720440163317,-2399.84,0.00049589,120]
[331492805,1720440163374,-500.0,0.00049589,120]
[331492806,1720440163431,-500.0,0.00049589,120]
[331492807,1720440163486,-500.0,0.00049589,120]
[331492808,1720440163541,-1672.29,0.00049589,120]
[331492809,1720440163595,-500.0,0.00049589,120]
[331492810,1720440163650,-522.47900791,0.00049589,120]
[331492811,1720440163713,-500.0,0.00049589,120]
[331492812,1720440163769,-1604.31,0.00049589,120]
[331492813,1720440163823,-164.27175022,0.00049589,120]
[331492814,1720440163878,-500.0,0.00049589,120]
[331492815,1720440163940,-500.0,0.00049589,120]
[331492816,1720440163999,-500.0,0.00049589,120]
[331492817,1720440164061,-500.0,0.00049589,120]
[331492818,1720440164120,-500.0,0.00049589,120]
[331492819,1720440164177,-500.0,0.00049589,120]
[331492820,1720440164231,-501.84909074,0.00049589,120]
[331492821,1720440164286,-2417.35,0.00049589,120]
[331492822,1720440164341,-500.0,0.00049589,120]
[331492823,1720440164395,-500.0,0.00049589,120]
[331492824,1720440164451,-500.0,0.00049589,120]
[331492825,1720440164506,-500.0,0.00049589,120]
[331492826,1720440164562,-500.0,0.00049589,120]
[331492827,1720440164620,-500.0,0.00049589,120]
[331492828,1720440164677,-1416.43,0.00049589,120]
[331492829,1720440164734,-691.6,0.00049589,120]
[331492830,1720440164792,-1198.2,0.00049589,120]
[331492831,1720440164852,-500.0,0.00049589,120]
[331492832,1720440165123,-500.0,0.00049589,120]
[331492833,1720440165180,-972.54,0.00049589,120]
[331492834,1720440165238,-500.0,0.00049589,120]
[331492835,1720440165295,-992.98,0.00049589,120]
[331492836,1720440165350,-1035.8,0.00049589,120]
[331492837,1720440165404,-542.92,0.00049589,120]
[331492838,1720440165457,-500.0,0.00049589,120]
[331492839,1720440165511,-500.0,0.00049589,120]
[331492840,1720440165563,-3821.85,0.00049589,120]
[331492841,1720440165613,-500.0,0.00049589,120]
[331492842,1720440165664,-500.0,0.00049589,120]
[331492843,1720440165715,-500.0,0.00049589,120]
[331492844,1720440165767,-500.0,0.00049589,120]
[331492845,1720440165818,-500.0,0.00049589,120]
[331492846,1720440165873,-500.0,0.00049589,120]
[331492847,1720440165925,-505.17325642,0.00049589,120]
[331492848,1720440165985,-500.0,0.00049589,120]
[331492849,1720440166038,-500.0,0.00049589,120]
[331492850,1720440166095,-539.31594731,0.00049589,120]
[331492851,1720440166154,-500.0,0.00049589,120]
[331492852,1720440166214,-500.0,0.00049589,120]
[331492853,1720440166270,-500.0,0.00049589,120]
[331492854,1720440166323,-500.0,0.00049589,120]
[331492855,1720440166374,-971.56,0.00049589,120]
[331492856,1720440166426,-587.73,0.00049589,120]
[331492857,1720440166475,-500.0,0.00049589,120]
[331492858,1720440166527,-500.0,0.00049589,120]
[331492859,1720440166579,-500.0,0.00049589,120]
[331492860,1720440166630,-500.0,0.00049589,120]
[331492861,1720440166681,-569.04930976,0.00049589,120]
[331492862,1720440166733,-1317.09,0.00049589,120]
[331492863,1720440166780,-500.0,0.00049589,120]
[331492864,1720440166830,-1389.08,0.00049589,120]
[331492865,1720440166880,-500.0,0.00049589,120]
[331492866,1720440166930,-500.0,0.00049589,120]
[331492867,1720440166984,-1639.49,0.00049589,120]
[331492868,1720440167035,-867.82,0.00049589,120]
[331492869,1720440167085,-500.0,0.00049589,120]
[331492870,1720440167136,-500.0,0.00049589,120]
[331492871,1720440167188,-500.0,0.00049589,120]
[331492872,1720440167237,-330.74666046,0.00049589,120]
[331492873,1720440167286,-500.0,0.00049589,120]
[331492874,1720440167335,-500.0,0.00049589,120]
[331492875,1720440167383,-500.0,0.00049589,120]
[331492876,1720440167430,-615.39,0.00049589,120]
[331492877,1720440167477,-500.0,0.00049589,120]
[331492878,1720440167524,-500.0,0.00049589,120]
[331492879,1720440167570,-500.0,0.00049589,120]
[331492880,1720440167618,-2430.97,0.00049589,120]
[331492881,1720440167666,-511.65033492,0.00049589,120]
[331492882,1720440167713,-548.85,0.00049589,120]
[331492883,1720440167760,-2066.55,0.00049589,120]
[331492884,1720440167808,-212.0626689,0.00049589,120]
[331492885,1720440167855,-921.41,0.00049589,120]
[331492886,1720440167903,-500.0,0.00049589,120]
[331492887,1720440167958,-500.0,0.00049589,120]
[331492888,1720440168016,-500.0,0.00049589,120]
[331492889,1720440168069,-500.0,0.00049589,120]
[331492890,1720440168123,-500.0,0.00049589,120]
[331492891,1720440168175,-1045.8,0.00049589,120]
[331492892,1720440168226,-500.0,0.00049589,120]
[331492893,1720440168277,-3346.99,0.00049589,120]
[331492894,1720440168327,-2785.91,0.00049589,120]
[331492895,1720440168377,-500.0,0.00049589,120]
[331492896,1720440168434,-500.0,0.00049589,120]
[331492897,1720440168487,-613.69,0.00049589,120]
[331492898,1720440168539,-500.0,0.00049589,120]
[331492899,1720440168590,-500.0,0.00049589,120]
[331492900,1720440168640,-500.0,0.00049589,120]
[331492901,1720440168689,-500.0,0.00049589,120]
[331492902,1720440168736,-500.0,0.00049589,120]
[331492903,1720440168784,-2884.68,0.00049589,120]
[331492904,1720440168834,-500.0,0.00049589,120]
[331492905,1720440168884,-1430.22,0.00049589,120]
[331492906,1720440168938,-500.0,0.00049589,120]
[331492907,1720440168992,-1223.29,0.00049589,120]
[331492908,1720440169043,-521.67,0.00049589,120]
[331492909,1720440169096,-500.0,0.00049589,120]
[331492910,1720440169148,-500.0,0.00049589,120]
[331492911,1720440169197,-500.0,0.00049589,120]
[331492912,1720440169250,-1451.36,0.00049589,120]
[331492913,1720440169299,-611.61,0.00049589,120]
[331492914,1720440169348,-500.0,0.00049589,120]
[331492915,1720440169396,-500.0,0.00049589,120]
[331492916,1720440169448,-919.43,0.00049589,120]
[331492917,1720440169496,-729.84,0.00049589,120]
[331492918,1720440169543,-500.0,0.00049589,120]
[331492919,1720440169590,-500.0,0.00049589,120]
[331492920,1720440169639,-500.0,0.00049589,120]
[331492921,1720440169689,-500.0,0.00049589,120]
[331492922,1720440169740,-500.0,0.00049589,120]
[331492923,1720440169790,-1252.38,0.00049589,120]
[331492924,1720440169839,-500.0,0.00049589,120]
[331492925,1720440169888,-500.0,0.00049589,120]
[331492926,1720440169950,-902.66,0.00049589,120]
[331492927,1720440170001,-502.38559398,0.00049589,120]
[331492928,1720440170055,-500.0,0.00049589,120]
[331492929,1720440170110,-1130.53,0.00049589,120]
[331492930,1720440170163,-558.45,0.00049589,120]
[331492931,1720440170217,-500.0,0.00049589,120]
[331492932,1720440170270,-1710.79,0.00049589,120]
[331492933,1720440170321,-500.0,0.00049589,120]
[331492934,1720440170373,-1387.34,0.00049589,120]
[331492935,1720440170425,-595.41,0.00049589,120]
[331492936,1720440170704,-500.0,0.00049589,120]
[331492937,1720440170760,-801.29,0.00049589,120]
[331492938,1720440170814,-500.0,0.00049589,120]
[331492939,1720440170866,-500.0,0.00049589,120]
[331492940,1720440170917,-500.0,0.00049589,120]
[331492941,1720440170971,-681.95,0.00049589,120]
[331492942,1720440171030,-500.0,0.00049589,120]
[331492943,1720440171083,-500.0,0.00049589,120]
[331492944,1720440171138,-500.0,0.00049589,120]
[331492945,1720440171190,-647.19,0.00049589,120]
[331492946,1720440171241,-545.74746845,0.00049589,120]
[331492947,1720440171293,-500.0,0.00049589,120]
[331492948,1720440171349,-500.0,0.00049589,120]
[331492949,1720440171403,-500.0,0.00049589,120]
[331492950,1720440171467,-500.0,0.00049589,120]
[331492951,1720440171520,-500.0,0.00049589,120]
[331492952,1720440171575,-500.0,0.00049589,120]
[331492953,1720440171631,-500.0,0.00049589,120]
[331492954,1720440171683,-920.91,0.00049589,120]
[331492955,1720440171734,-809.57,0.00049589,120]
[331492956,1720440171786,-1342.46,0.00049589,120]
[331492957,1720440171838,-508.51,0.00049589,120]
[331492958,1720440171891,-866.07,0.00049589,120]
[331492959,1720440171943,-500.0,0.00049589,120]
[331492960,1720440172019,-500.0,0.00049589,120]
[331492961,1720440172075,-669.08,0.00049589,120]
[331492962,1720440172129,-500.0,0.00049589,120]
[331492963,1720440172182,-500.0,0.00049589,120]
[331492964,1720440172232,-339.60251895,0.00049589,120]
[331492965,1720440172283,-924.87,0.00049589,120]
[331492966,1720440172334,-500.0,0.00049589,120]
[331492967,1720440172387,-1526.59,0.00049589,120]
[331492968,1720440172436,-2651.63,0.00049589,120]